[Event "4NCL Div 1 2018-19"]
[Site "Daventry"]
[Date "2018.11.10"]
[Round "1"]
[White "Eggleston, David J"]
[Black "Golding, Alex"]
[Result "1-0"]
[ECO "C54"]
[WhiteElo "2408"]
[BlackElo "2263"]
[Annotator "NA"]
[PlyCount "124"]
[EventDate "2018.11.10"]
[EventType "team-tourn"]
[EventCountry "GBR"]
[SourceTitle "playchess.com"]
[Source "ChessBase"]
[SourceQuality "1"]
[TimeControl "40/6000+30:3000+30"]

1. e4 {[%emt 0:00:00]} e5 {[%emt 0:00:00]} 2. Nf3 {[%emt 0:00:00]} Nc6 {[%emt 0:00:00]} 3. Bc4 {[%emt 0:00:00]} Bc5 {[%emt 0:01:40]} 4. c3 {[%emt 0:00:00]} Nf6 {[%emt 0:00:04]} 5. d3 {[%emt 0:00:03]} O-O {[%emt 0:02:20]} 6. b4 {[%emt 0:00:54]} Bb6 {[%emt 0:05:34]} 7. a4 {[%emt 0:01:00]} a6 {[%emt 0:00:16]} 8. O-O {[%emt 0:00:44]} h6 {[%emt 0:01:09]} 9. h3 {[%emt 0:03:18]} d6 {[%emt 0:01:01]} 10. Nbd2 {[%emt 0:00:28] C54: Giuoco Piano: 4 c3 Nf6, main lines with 5 d4 and 5 d3} Ne7 {[%emt 0:00:50]} 11. a5 {[%emt 0:01:09]} Ba7 {[%emt 0:00:07]} 12. Re1 {[%emt 0:00:14]} Ng6 {[%emt 0:02:02]} 13. Nf1 {[%emt 0:01:34]} Re8 {[%emt 0:01:15]} 14. Ng3 {[%emt 0:01:43]} c6 {[%emt 0:03:10] [#]} 15. Bb3 $146 {[%emt 0:03:31]} ({Predecessor:} 15. d4 Be6 {½-½ (15) Becerra Rivero,J (2545)-Arencibia Rodriguez,W (2555) Mondariz 1996}) 15... d5 {[%emt 0:04:39]} 16. Bb2 {[%emt 0:14:11]} Qc7 {[%emt 0:04:03]} 17. c4 {[%emt 0:04:33]} dxe4 {[%emt 0:06:34]} 18. dxe4 {[%emt 0:00:10]} c5 {[%emt 0:01:56]} 19. b5 {[%emt 0:02:07]} b6 {[%emt 0:03:21]} 20. axb6 {[%emt 0:11:48]} Bxb6 {[%emt 0:00:40]} 21. Nf5 {[%emt 0:08:31]} Bb7 {[%emt 0:09:10]} 22. Qc2 {[%emt 0:07:51]} axb5 $14 {[%emt 0:02:34]} 23. Rxa8 {[%emt 0:01:33]} Bxa8 {[%emt 0:00:50]} 24. cxb5 {[%emt 0:00:19]} c4 {[%emt 0:09:54]} 25. Qxc4 {[%emt 0:08:56]} Qxc4 {[%emt 0:02:01]} 26. Bxc4 {[%emt 0:00:08]} Nxe4 {[%emt 0:02:01]} 27. Rxe4 {[%emt 0:00:27]} Bxe4 {[%emt 0:00:07]} 28. Nd6 {[%emt 0:00:09]} Bxf3 {[%emt 0:02:44]} 29. Bxf7+ {[%emt 0:01:56]} Kf8 {[%emt 0:00:42]} 30. Bxe8 {[%emt 0:00:23]} Nf4 {[%emt 0:10:02]} 31. gxf3 {[%emt 0:01:19]} Nxh3+ {[%emt 0:00:19]} 32. Kf1 {[%emt 0:01:14]} Nxf2 {[%emt 0:01:29]} 33. Bg6 {[%emt 0:01:39]} Nd1 {[%emt 0:00:54]} 34. Bxe5 {[%emt 0:00:16]} Ne3+ {[%emt 0:00:32]} 35. Ke2 {[%emt 0:00:06]} Nd5 {[%emt 0:00:12]} 36. Nf5 {[%emt 0:02:57]} Nc7 {[%emt 0:02:42]} 37. Bxg7+ {[%emt 0:00:06]} Kg8 {[%emt 0:00:06]} 38. Bd4 {[%emt 0:00:13]} Ba5 {[%emt 0:00:32]} 39. Nxh6+ {[%emt 0:01:00]} Kf8 {[%emt 0:00:08]} 40. b6 {[%emt 0:01:06]} Ne6 {[%emt 0:00:05]} 41. Be3 {[%emt 0:53:51]} Bxb6 {[%emt 0:50:05]} 42. Bxb6 {[%emt 0:00:10]} Nf4+ {[%emt 0:00:05]} 43. Kf2 {[%emt 0:00:50]} Nxg6 {[%emt 0:00:06]} 44. Kg3 {[%emt 0:00:16]} Kg7 {[%emt 0:00:09]} 45. Ng4 {[%emt 0:00:09]} Ne7 {[%emt 0:00:21]} 46. Ne3 {[%emt 0:00:26]} Kf7 {[%emt 0:00:16]} 47. Bc5 {[%emt 0:00:10]} Nc6 {[%emt 0:00:59]} 48. Kf4 {[%emt 0:00:31]} Ke6 {[%emt 0:00:08]} 49. Ke4 {[%emt 0:00:08]} Ne5 {[%emt 0:00:19]} 50. f4 {[%emt 0:00:12]} Nd7 {[%emt 0:00:07]} 51. Bd4 {[%emt 0:00:09]} Ke7 {[%emt 0:00:26]} 52. Ng4 {[%emt 0:00:23]} Ke6 {[%emt 0:00:22]} 53. f5+ {[%emt 0:00:08]} Kd6 {[%emt 0:00:14]} 54. Be5+ {[%emt 0:00:23]} Ke7 {[%emt 0:00:11]} 55. Kf4 {[%emt 0:00:55]} Nc5 {[%emt 0:00:21]} 56. Nf2 {[%emt 0:00:24]} Kf7 {[%emt 0:00:09]} 57. Bd4 {[%emt 0:00:19]} Nd7 {[%emt 0:01:12]} 58. Ng4 {[%emt 0:00:12]} Ke7 {[%emt 0:00:12]} 59. Kg5 {[%emt 0:00:05]} Kd6 {[%emt 0:00:33]} 60. Kg6 {[%emt 0:00:53]} Ke7 {[%emt 0:00:29]} 61. Kg7 {[%emt 0:00:21]} Kd6 {[%emt 0:00:15]} 62. Ne5 {[%emt 0:00:38]} Nb8 {[%emt 0:06:29]} 1-0

[Event "4NCL Div 1 2018-19"]
[Site "Daventry"]
[Date "2018.11.10"]
[Round "1"]
[White "Szczepkowska, Karina"]
[Black "Hunt, Adam C"]
[Result "1-0"]
[ECO "E70"]
[WhiteElo "2404"]
[BlackElo "2401"]
[Annotator "ChessBase"]
[PlyCount "121"]
[EventDate "2018.11.10"]
[EventType "team-tourn"]
[EventCountry "GBR"]
[SourceTitle "playchess.com"]
[Source "ChessBase"]
[SourceQuality "1"]
[TimeControl "40/6000+30:3000+30"]

1. d4 {[%emt 0:00:00]} Nf6 {[%emt 0:00:00]} 2. c4 {[%emt 0:01:08]} g6 {[%emt 0:00:00]} 3. Nc3 {[%emt 0:00:51]} Bg7 {[%emt 0:00:04]} 4. e4 {[%emt 0:02:22]} d6 {[%emt 0:00:32]} 5. Bd3 {[%emt 0:03:38]} O-O {[%emt 0:04:18]} 6. Nge2 {[%emt 0:00:30]} e5 {[%emt 0:05:16]} 7. d5 {[%emt 0:00:22]} a5 {[%emt 0:00:29]} 8. h3 {[%emt 0:00:42]} Na6 {[%emt 0:01:55]} 9. Be3 {[%emt 0:02:29]} Bd7 {[%emt 0:05:50]} 10. Ng3 {[%emt 0:14:09]} Ne8 {[%emt 0:03:21]} 11. O-O {[%emt 0:01:07]} c6 {[%emt 0:05:51]} 12. dxc6 {[%emt 0:10:36]} Bxc6 {[%emt 0:04:48]} 13. Rc1 {[%emt 0:06:12]} Nc5 {[%emt 0:12:15]} 14. Bc2 {[%emt 0:08:45]} Nc7 {[%emt 0:04:00]} 15. Qd2 {[%emt 0:08:15]} N7e6 {[%emt 0:04:25]} 16. Nd5 {[%emt 0:00:52]} b5 {[%emt 0:03:08]} 17. cxb5 {[%emt 0:04:31]} Bxb5 {[%emt 0:00:08]} 18. Rfd1 {[%emt 0:00:11]} Nd4 {[%emt 0:06:05]} 19. Bb1 {[%emt 0:01:51]} Rb8 {[%emt 0:03:19]} 20. Bg5 {[%emt 0:01:59]} f6 {[%emt 0:03:21]} 21. Be3 {[%emt 0:00:26]} Nce6 {[%emt 0:02:45]} 22. Nc3 {[%emt 0:04:31]} Ba6 {[%emt 0:03:15]} 23. Nge2 {[%emt 0:05:42]} f5 {[%emt 0:05:40]} 24. exf5 {[%emt 0:06:44]} gxf5 {[%emt 0:04:12]} 25. Bxd4 {[%emt 0:07:07]} exd4 {[%emt 0:00:30]} 26. Nd5 {[%emt 0:00:12]} Qh4 {[%emt 0:10:28]} 27. Nef4 {[%emt 0:05:58]} Nc5 {[%emt 0:05:37]} 28. g3 {[%emt 0:03:16]} Qd8 {[%emt 0:00:55]} 29. Re1 {[%emt 0:00:47]} Rb7 {[%emt 0:03:05]} 30. b3 {[%emt 0:01:43]} Rbf7 {[%emt 0:01:33]} 31. Qd1 {[%emt 0:02:27]} Bb7 {[%emt 0:01:36]} 32. Bd3 {[%emt 0:01:46]} Nxd3 {[%emt 0:01:29]} 33. Qxd3 {[%emt 0:00:37]} Be5 {[%emt 0:03:07]} 34. Ne6 {[%emt 0:02:08]} Qb8 {[%emt 0:00:24]} 35. Ndf4 {[%emt 0:02:18]} Rc8 {[%emt 0:00:50]} 36. Qd2 {[%emt 0:00:52]} Rc3 {[%emt 0:00:30]} 37. Nxd4 {[%emt 0:00:37]} Rxc1 {[%emt 0:01:09]} 38. Rxc1 {[%emt 0:00:02]} Qa7 {[%emt 0:00:19]} 39. Nc6 {[%emt 0:00:59]} Qa8 {[%emt 0:01:13]} 40. Qd5 {[%emt 0:00:36]} Bxf4 {[%emt 0:01:13]} 41. gxf4 {[%emt 0:50:06]} Qf8 {[%emt 0:01:51]} 42. Kh2 {[%emt 0:00:00]} Qh6 {[%emt 0:01:11]} 43. Rg1+ {[%emt 0:00:00]} Kf8 {[%emt 0:00:31]} 44. Rg5 {[%emt 0:00:00]} Qf6 {[%emt 0:01:08]} 45. Qc4 {[%emt 0:12:04]} Qb2 {[%emt 0:06:39]} 46. Qd4 {[%emt 0:00:00]} Qxd4 {[%emt 0:00:17]} 47. Nxd4 {[%emt 0:00:00]} Be4 {[%emt 0:00:09]} 48. f3 {[%emt 0:00:00]} Bd3 {[%emt 0:01:42]} 49. Rg2 {[%emt 0:00:00]} Ke8 {[%emt 0:03:52]} 50. Rg8+ {[%emt 0:00:00]} Ke7 {[%emt 0:01:11]} 51. Ra8 {[%emt 0:00:00]} Kf6 {[%emt 0:00:24]} 52. Rxa5 {[%emt 0:00:00]} Rc7 {[%emt 0:00:33]} 53. Rd5 {[%emt 0:00:00]} Ke7 {[%emt 0:00:24]} 54. a4 {[%emt 0:00:00]} Rc5 {[%emt 0:01:55]} 55. Nc6+ {[%emt 0:00:00]} Rxc6 {[%emt 0:00:22]} 56. Rxd3 {[%emt 0:00:00]} Rb6 {[%emt 0:00:36]} 57. Kg3 {[%emt 0:00:00]} Rb4 {[%emt 0:00:45]} 58. Kh4 {[%emt 0:00:00]} Rxf4+ {[%emt 0:01:59]} 59. Kg5 {[%emt 0:00:00]} Rb4 {[%emt 0:00:08]} 60. Kxf5 {[%emt 0:00:00]} Rh4 {[%emt 0:00:07]} 61. f4 {[%emt 0:00:00]} 1-0

[Event "4NCL Div 1 2018-19"]
[Site "Daventry"]
[Date "2018.11.10"]
[Round "1"]
[White "Bates, Richard A"]
[Black "Kulon, Klaudia"]
[Result "0-1"]
[ECO "E62"]
[WhiteElo "2378"]
[BlackElo "2327"]
[Annotator "NA RC"]
[PlyCount "80"]
[EventDate "2018.11.10"]
[EventType "team-tourn"]
[EventCountry "GBR"]
[SourceTitle "playchess.com"]
[Source "ChessBase"]
[SourceQuality "1"]
[TimeControl "40/6000+30:3000+30"]

1. d4 {[%emt 0:00:00]} Nf6 {[%emt 0:00:00]} 2. Nf3 {[%emt 0:00:00]} g6 {[%emt 0:00:00]} 3. g3 {[%emt 0:00:20]} Bg7 {[%emt 0:00:00]} 4. Bg2 {[%emt 0:00:05]} O-O {[%emt 0:00:00]} 5. O-O {[%emt 0:00:08]} d6 {[%emt 0:00:01]} 6. c4 {[%emt 0:00:28]} Nc6 {[%emt 0:00:05]} 7. Nc3 {[%emt 0:00:19]} e5 {[%emt 0:00:24]} 8. d5 {[%emt 0:07:25]} Nb8 {[%emt 0:00:05]} 9. e4 {[%emt 0:00:59]} a5 {[%emt 0:01:49] E62: Königsindisch (6...Sc6)} 10. Ne1 {[%emt 0:06:17]} Na6 {[%emt 0:00:08]} 11. Nd3 {[%emt 0:00:31]} Nd7 {[%emt 0:01:40]} 12. Be3 {[%emt 0:03:11]} f5 {[%emt 0:06:24]} (12... Ndc5 13. Nxc5 Nxc5 14. Qd2 f5 15. exf5 gxf5 16. f4 e4 {1-0 (50) Svidler,P (2753)-Yu,Y (2759) Shenzhen 2018}) 13. Qd2 {[%emt 0:08:27]} Nf6 {[%emt 0:04:23]} 14. f3 $146 {[%emt 0:05:57]} ({Vorgänger:} 14. Bg5 Qe8 15. Rae1 Nh5 16. Be3 b6 17. f4 {½-½ (59) Mica,M (2100)-Vybiral,Z (2269) Stare Mesto 2018}) 14... b6 {[%emt 0:00:35]} 15. Kh1 {[%emt 0:06:53]} Nc5 {[%emt 0:00:58]} 16. exf5 {[%emt 0:11:08]} gxf5 {[%emt 0:01:29]} 17. Rae1 {[%emt 0:04:14]} Bd7 {[%emt 0:07:07]} 18. b3 {[%emt 0:05:59]} Qe8 {[%emt 0:08:44]} 19. Bxc5 {[%emt 0:12:38]} bxc5 $11 {[%emt 0:00:15]} 20. Nf4 {[%emt 0:00:05]} Qf7 {[%emt 0:05:40]} 21. Ne6 {[%emt 0:00:12]} Bxe6 {[%emt 0:00:08]} 22. dxe6 {[%emt 0:00:07]} Qxe6 {[%emt 0:00:07]} 23. g4 {[%emt 0:01:23]} Rac8 {[%emt 0:12:30]} 24. f4 {[%emt 0:04:00]} fxg4 {[%emt 0:01:34]} 25. fxe5 {[%emt 0:02:12]} dxe5 {[%emt 0:00:06]} 26. Qg5 {[%emt 0:08:58]} e4 {[%emt 0:01:49]} 27. Qxc5 {[%emt 0:02:25]} Kh8 {[%emt 0:01:00]} 28. Qxa5 {[%emt 0:06:34]} c5 {[%emt 0:04:12]} 29. Nxe4 {[%emt 0:06:32]} Nxe4 {[%emt 0:01:21]} 30. Rxf8+ {[%emt 0:00:03]} Rxf8 {[%emt 0:00:07]} 31. Bxe4 {[%emt 0:00:07]} Re8 {[%emt 0:09:14]} 32. Qxc5 {[%emt 0:02:01]} Bc3 {[%emt 0:00:43]} 33. Qh5 {[%emt 0:03:51]} Re7 {[%emt 0:01:07]} 34. Re2 {[%emt 0:00:07]} Qf6 {[%emt 0:01:07]} 35. Bf5 {[%emt 0:00:59]} Qd4 {[%emt 0:03:44]} 36. Bxg4 {[%emt 0:00:21]} Qf4 {[%emt 0:07:20]} 37. Kg2 {[%emt 0:01:57]} Bd4 {[%emt 0:00:27]} 38. Bf3 {[%emt 0:01:16]} Be5 {[%emt 0:04:14]} 39. Bd5 {[%emt 0:00:30]} Rg7+ {[%emt 0:04:05]} 40. Kh3 {[%emt 0:00:01]} Rg3+ {[%emt 0:00:07]} 0-1

[Event "4NCL Div 1 2018-19"]
[Site "Daventry"]
[Date "2018.11.10"]
[Round "1"]
[White "Seger, Ruediger"]
[Black "Head, Louise"]
[Result "1/2-1/2"]
[ECO "B17"]
[WhiteElo "2349"]
[BlackElo "2237"]
[Annotator "NA RC"]
[PlyCount "61"]
[EventDate "2018.11.10"]
[EventType "team-tourn"]
[EventCountry "GBR"]
[SourceTitle "playchess.com"]
[Source "ChessBase"]
[SourceQuality "1"]
[TimeControl "40/6000+30:3000+30"]

1. e4 {[%emt 0:00:00]} c6 {[%emt 0:00:00]} 2. d4 {[%emt 0:00:00]} d5 {[%emt 0:00:00]} 3. Nd2 {[%emt 0:00:00]} dxe4 {[%emt 0:00:00]} 4. Nxe4 {[%emt 0:00:00]} Nd7 {[%emt 0:00:24]} 5. Ng5 {[%emt 0:01:28]} Ngf6 {[%emt 0:00:30]} 6. Bd3 {[%emt 0:00:30]} g6 {[%emt 0:02:20]} 7. N1f3 {[%emt 0:03:04]} Bg7 {[%emt 0:01:49]} 8. Qe2 {[%emt 0:10:16]} O-O {[%emt 0:01:43]} 9. Ne5 {[%emt 0:08:03]} Nxe5 {[%emt 0:10:12]} 10. dxe5 {[%emt 0:00:06]} Nd5 {[%emt 0:03:19]} 11. O-O {[%emt 0:13:23]} h6 {[%emt 0:24:00]} 12. Nf3 {[%emt 0:00:53]} Bg4 {[%emt 0:07:35]} 13. h3 {[%emt 0:08:31]} Bxf3 {[%emt 0:00:10]} 14. Qxf3 {[%emt 0:00:04]} Bxe5 {[%emt 0:05:37]} 15. Bxh6 {[%emt 0:00:08]} Bg7 {[%emt 0:00:55]} 16. Bxg7 {[%emt 0:02:07]} Kxg7 {[%emt 0:00:07]} 17. Rfe1 {[%emt 0:03:40]} e6 {[%emt 0:01:58]} 18. c4 $11 {[%emt 0:03:46]} Nf6 {[%emt 0:06:23]} 19. Bf1 {[%emt 0:07:05]} Qc7 {[%emt 0:07:38]} 20. Qc3 {[%emt 0:01:13]} Rad8 {[%emt 0:09:26]} 21. Re4 {[%emt 0:04:57]} Qe7 {[%emt 0:05:33]} 22. Rae1 {[%emt 0:08:20]} Kg8 {[%emt 0:02:17]} 23. Rh4 {[%emt 0:07:21]} Nh5 {[%emt 0:03:25]} 24. g3 {[%emt 0:08:31]} Qf6 {[%emt 0:00:26]} 25. Qb4 {[%emt 0:01:51]} Rd7 {[%emt 0:03:11]} 26. Be2 {[%emt 0:03:40]} Ng7 {[%emt 0:00:57]} 27. Rf4 {[%emt 0:02:59]} Qe7 {[%emt 0:00:09]} 28. Qc3 {[%emt 0:06:28]} c5 {[%emt 0:01:12]} 29. Bd3 {[%emt 0:02:01]} Rfd8 {[%emt 0:00:21]} 30. Re3 {[%emt 0:00:20]} Rd4 {[%emt 0:02:18]} 31. Ref3 {[%emt 0:00:51]} 1/2-1/2

[Event "4NCL Div 1 2018-19"]
[Site "Daventry"]
[Date "2018.11.10"]
[Round "1"]
[White "Littlewood, Paul E"]
[Black "Pozimski, Szymon"]
[Result "1-0"]
[ECO "E56"]
[WhiteElo "2343"]
[BlackElo "1999"]
[Annotator "NA"]
[PlyCount "95"]
[EventDate "2018.11.10"]
[EventType "team-tourn"]
[EventCountry "GBR"]
[SourceTitle "playchess.com"]
[Source "ChessBase"]
[SourceQuality "1"]
[TimeControl "40/6000+30:3000+30"]

1. d4 {[%emt 0:00:00]} Nf6 {[%emt 0:00:00]} 2. c4 {[%emt 0:00:00]} e6 {[%emt 0:00:00]} 3. Nc3 {[%emt 0:01:57]} d5 {[%emt 0:00:00]} 4. cxd5 {[%emt 0:01:24]} Nxd5 {[%emt 0:00:02]} 5. Nf3 {[%emt 0:04:42]} c5 {[%emt 0:03:32]} 6. e3 {[%emt 0:01:42]} Be7 {[%emt 0:21:40]} 7. Bd3 {[%emt 0:00:30]} Nc6 {[%emt 0:28:44]} 8. O-O {[%emt 0:06:06]} Nf6 {[%emt 0:03:37]} 9. a3 {[%emt 0:03:11]} O-O {[%emt 0:04:22]} 10. dxc5 {[%emt 0:06:09]} Bxc5 {[%emt 0:00:27]} 11. b4 {[%emt 0:00:12] E56: Nimzo-Indian: Rubinstein: Main Line: 7...Nc6} (11. Qc2 Qe7 12. b4 Bd6 13. Bb2 Ne5 14. Nxe5 Bxe5 15. Rfd1 Bd7 16. f4 Bxc3 17. Bxc3 Rac8 18. Qb2 Ba4 {½-½ (73) Ashwin,J (2484)-Korley,K (2385) Charlotte 2018}) 11... Bd6 {[%emt 0:01:45]} 12. Bb2 {[%emt 0:01:34]} e5 $146 {[%emt 0:07:39]} ({Predecessor:} 12... Qe7 13. Ne4 Nxe4 14. Bxe4 f5 15. Bc2 b6 16. e4 Bb7 17. exf5 exf5 18. Re1 Qd8 19. Qd5+ Kh8 20. Rad1 Bf4 21. Qd7 {1-0 (21) Orzechowski,J (2242)-Olsar,J (2309) Karvina 2003}) 13. Ne4 {[%emt 0:05:59]} Nxe4 {[%emt 0:13:49]} 14. Bxe4 {[%emt 0:00:09]} Qe7 {[%emt 0:07:07]} 15. Qc2 {[%emt 0:10:29]} Bg4 {[%emt 0:03:47]} 16. b5 {[%emt 0:21:48]} Nd8 {[%emt 0:00:45]} 17. Bxh7+ {[%emt 0:02:56]} Kh8 {[%emt 0:00:03]} 18. Bf5 {[%emt 0:03:21]} Bxf3 {[%emt 0:04:28]} 19. gxf3 {[%emt 0:00:08]} g6 {[%emt 0:02:38]} 20. Bh3 {[%emt 0:01:32]} Qh4 {[%emt 0:03:14]} 21. Bg2 {[%emt 0:01:02]} Ne6 {[%emt 0:01:47]} 22. f4 {[%emt 0:07:06]} Rac8 {[%emt 0:00:46]} 23. Qe4 {[%emt 0:02:20]} Kh7 {[%emt 0:00:25]} 24. fxe5 {[%emt 0:02:44]} Qxe4 {[%emt 0:00:07]} 25. Bxe4 {[%emt 0:00:05]} Bb8 {[%emt 0:00:13]} 26. Rac1 {[%emt 0:09:06]} Nc5 {[%emt 0:00:18]} 27. Bb1 {[%emt 0:00:12]} Rfe8 {[%emt 0:01:09]} 28. f4 {[%emt 0:00:30]} b6 {[%emt 0:05:05]} 29. Rc4 {[%emt 0:05:04]} f6 {[%emt 0:00:00]} 30. exf6 {[%emt 0:04:55]} Rxe3 {[%emt 0:00:00]} 31. f7 {[%emt 0:00:11]} Rb3 {[%emt 0:00:00]} 32. Bf6 {[%emt 0:03:38]} Rf8 {[%emt 0:00:00]} 33. f5 {[%emt 0:00:45]} Rxb1 {[%emt 0:00:00]} 34. Rxb1 {[%emt 0:00:37]} g5 {[%emt 0:00:00]} 35. Be7 {[%emt 0:00:55]} Rxf7 {[%emt 0:00:00]} 36. Bxc5 {[%emt 0:00:10]} bxc5 {[%emt 0:00:00]} 37. Rxc5 {[%emt 0:00:06]} Bc7 {[%emt 0:00:00]} 38. Kg2 {[%emt 0:00:23]} Bd6 {[%emt 0:00:00]} 39. Rd5 {[%emt 0:01:27]} Bxa3 {[%emt 0:00:00]} 40. Ra1 {[%emt 0:02:20]} Bb2 {[%emt 0:00:00]} 41. Ra6 {[%emt 0:50:21]} Bc1 {[%emt 0:50:13]} 42. Rad6 {[%emt 0:00:50]} Kg7 {[%emt 0:01:00]} 43. Rd7 {[%emt 0:01:06]} Be3 {[%emt 0:01:06]} 44. Kf3 $18 {[%emt 0:00:30]} (44. Rxf7+ $142 Kxf7 45. Kf3) 44... Bg1 {[%emt 0:01:00]} 45. h3 {[%emt 0:00:15]} Kf6 {[%emt 0:00:00]} 46. Rxf7+ {[%emt 0:00:00]} Kxf7 {[%emt 0:00:00]} 47. Kg4 {[%emt 0:00:00]} Be3 {[%emt 0:00:00]} 48. Rd6 {[%emt 0:01:43]} 1-0

[Event "4NCL Div 1 2018-19"]
[Site "Daventry"]
[Date "2018.11.10"]
[Round "1"]
[White "Ansell, Simon T"]
[Black "Maciol, Ryszard"]
[Result "1/2-1/2"]
[ECO "A47"]
[WhiteElo "2336"]
[BlackElo "2120"]
[Annotator "RC"]
[PlyCount "79"]
[EventDate "2018.11.10"]
[EventType "team-tourn"]
[EventCountry "GBR"]
[SourceTitle "playchess.com"]
[Source "ChessBase"]
[SourceQuality "1"]
[TimeControl "40/6000+30:3000+30"]

1. d4 {[%emt 0:00:00]} e6 {[%emt 0:00:00]} 2. Nf3 {[%emt 0:02:18]} Nf6 {[%emt 0:00:00]} 3. Bf4 {[%emt 0:00:53]} b6 {[%emt 0:01:00]} 4. e3 {[%emt 0:01:18]} Bb7 {[%emt 0:01:06]} 5. h3 {[%emt 0:00:33]} Be7 {[%emt 0:01:58]} 6. Bd3 {[%emt 0:01:10]} c5 {[%emt 0:00:37]} 7. c3 {[%emt 0:00:37]} d6 {[%emt 0:07:01]} 8. O-O {[%emt 0:02:17]} O-O {[%emt 0:02:16]} 9. Bh2 {[%emt 0:03:30]} Qd7 {[%emt 0:05:01]} 10. Nbd2 {[%emt 0:10:52]} Nc6 {[%emt 0:02:24]} 11. Qe2 {[%emt 0:02:30]} Rfd8 {[%emt 0:04:17]} 12. Rfd1 {[%emt 0:11:14]} Bf8 {[%emt 0:03:47]} 13. e4 {[%emt 0:05:01]} Qe7 {[%emt 0:08:14]} 14. e5 {[%emt 0:06:14]} dxe5 {[%emt 0:03:23]} 15. dxe5 {[%emt 0:00:24]} Ne8 {[%emt 0:02:15]} 16. Nc4 {[%emt 0:09:34]} g6 {[%emt 0:09:36]} 17. a4 {[%emt 0:00:25]} Qc7 {[%emt 0:03:23]} 18. Bf4 {[%emt 0:10:33]} Bg7 {[%emt 0:10:21]} 19. Bc2 {[%emt 0:11:37]} Rxd1+ {[%emt 0:03:25]} 20. Rxd1 {[%emt 0:00:07]} Rd8 {[%emt 0:00:14]} 21. Rxd8 {[%emt 0:00:57]} Nxd8 {[%emt 0:02:49]} 22. h4 {[%emt 0:04:34]} Qd7 {[%emt 0:14:00]} 23. h5 {[%emt 0:01:37]} Bc6 {[%emt 0:01:45]} 24. hxg6 {[%emt 0:00:57]} hxg6 {[%emt 0:00:49]} 25. b3 {[%emt 0:04:31]} Nc7 {[%emt 0:01:56]} 26. Ng5 {[%emt 0:01:12]} Nd5 {[%emt 0:02:49]} 27. Bd2 {[%emt 0:00:18]} Nb7 {[%emt 0:02:04]} 28. Qd3 {[%emt 0:01:46]} b5 {[%emt 0:02:13]} 29. axb5 {[%emt 0:00:29]} Bxb5 {[%emt 0:00:03]} 30. Nf3 {[%emt 0:08:35]} Na5 {[%emt 0:04:36]} 31. Qe4 {[%emt 0:00:05]} Bxc4 {[%emt 0:04:19]} 32. bxc4 {[%emt 0:00:04]} Nb6 {[%emt 0:00:08]} 33. Be3 {[%emt 0:00:26]} Naxc4 {[%emt 0:01:29]} 34. Bxc5 {[%emt 0:00:33]} Nd2 {[%emt 0:02:31]} 35. Nxd2 {[%emt 0:01:58]} Qxd2 {[%emt 0:00:03]} 36. Bd4 {[%emt 0:00:38]} Qc1+ {[%emt 0:02:00]} 37. Kh2 {[%emt 0:00:04]} Qh6+ {[%emt 0:00:33]} 38. Kg1 {[%emt 0:00:22]} Qc1+ {[%emt 0:00:06]} 39. Kh2 {[%emt 0:00:03]} Qh6+ {[%emt 0:00:05]} 40. Kg1 {[%emt 0:01:10]} 1/2-1/2

[Event "4NCL Div 1 2018-19"]
[Site "Daventry"]
[Date "2018.11.10"]
[Round "1"]
[White "Povah, Nigel E"]
[Black "Connell, Blair N"]
[Result "1-0"]
[ECO "D02"]
[WhiteElo "2326"]
[BlackElo "2246"]
[Annotator "NA"]
[PlyCount "75"]
[EventDate "2018.11.10"]
[EventType "team-tourn"]
[EventCountry "GBR"]
[SourceTitle "playchess.com"]
[Source "ChessBase"]
[SourceQuality "1"]
[TimeControl "40/6000+30:3000+30"]

1. d4 {[%emt 0:00:00]} d5 {[%emt 0:00:12]} 2. Bf4 {[%emt 0:00:00]} Nf6 {[%emt 0:00:26]} 3. e3 {[%emt 0:00:00]} c5 {[%emt 0:00:22]} 4. c3 {[%emt 0:00:23]} Nc6 {[%emt 0:00:11]} 5. Nd2 {[%emt 0:00:09]} e6 {[%emt 0:00:16]} 6. Ngf3 {[%emt 0:00:46]} cxd4 {[%emt 0:01:19]} 7. exd4 {[%emt 0:00:14]} Nh5 {[%emt 0:00:31]} 8. Be3 {[%emt 0:10:18]} Bd6 {[%emt 0:01:46]} 9. Ne5 {[%emt 0:11:41]} g6 {[%emt 0:02:49]} 10. f4 {[%emt 0:08:41]} f6 {[%emt 0:05:52]} 11. Nd3 {[%emt 0:05:08]} Ng7 {[%emt 0:17:16]} 12. Qf3 {[%emt 0:05:19]} O-O {[%emt 0:01:28]} 13. O-O-O {[%emt 0:13:11]} e5 {[%emt 0:45:29]} 14. dxe5 {[%emt 0:01:35]} fxe5 {[%emt 0:00:30]} 15. Qxd5+ {[%emt 0:00:54]} Be6 {[%emt 0:00:11]} 16. Qe4 {[%emt 0:01:16]} Bf5 {[%emt 0:05:24]} 17. Qc4+ {[%emt 0:01:23]} Be6 {[%emt 0:04:19]} 18. Qa4 {[%emt 0:05:02]} Qc7 {[%emt 0:11:31]} 19. fxe5 {[%emt 0:06:48]} Bxe5 {[%emt 0:00:48]} 20. Nc4 {[%emt 0:10:06]} Bf6 {[%emt 0:01:48]} 21. Bf4 {[%emt 0:01:01]} Qc8 {[%emt 0:01:24]} 22. Nd6 {[%emt 0:02:10]} Qd8 {[%emt 0:03:11]} 23. Nxb7 {[%emt 0:07:53]} Qb6 {[%emt 0:01:39]} 24. Ndc5 {[%emt 0:02:13]} Bg4 {[%emt 0:00:34]} 25. Rd2 {[%emt 0:02:24]} Rfe8 {[%emt 0:02:17]} 26. Bb5 {[%emt 0:00:35]} Rac8 {[%emt 0:00:20]} 27. Qc4+ {[%emt 0:00:50]} Kh8 {[%emt 0:00:16]} 28. Nd6 {[%emt 0:00:15]} Ne5 {[%emt 0:00:50]} 29. Bxe5 {[%emt 0:01:23]} Be6 {[%emt 0:00:01]} 30. Nxc8 {[%emt 0:00:51]} Rxc8 {[%emt 0:00:16]} 31. Na4 {[%emt 0:01:43]} Qe3 {[%emt 0:01:19]} 32. Qxc8+ {[%emt 0:05:22]} Bxc8 {[%emt 0:00:02]} 33. Bxf6 {[%emt 0:00:09]} h6 {[%emt 0:00:16]} 34. Bd4 {[%emt 0:00:38]} Qg5 {[%emt 0:00:01]} 35. Nc5 {[%emt 0:01:39]} Kh7 {[%emt 0:00:03]} 36. Bd3 {[%emt 0:00:40]} Qd5 {[%emt 0:00:32]} 37. Re1 {[%emt 0:01:12]} Bf5 {[%emt 0:01:06]} 38. Re7 {[%emt 0:00:45]} 1-0